[Event "*** Titled Tuesday Blitz"]
[Site "Chess.com"]
[Date "2020.05.12"]
[Round "8"]
[White "Fandorine"]
[Black "SpasKozhuharov"]
[Result "1/2-1/2"]
[WhiteElo "2854"]
[BlackElo "2699"]
[TimeControl "180+1"]
[EndTime "11:33:35 PDT"]
[Termination "Game drawn by repetition"]

1. c4 {[%clk 0:03:00.9]} 1... e5 {[%clk 0:02:57.3]} 2. g3 {[%clk 0:03:00.7]}
2... Nf6 {[%clk 0:02:55]} 3. Bg2 {[%clk 0:03:00.7]} 3... d5 {[%clk 0:02:54.8]}
4. cxd5 {[%clk 0:03:01]} 4... Nxd5 {[%clk 0:02:55.7]} 5. Nf3 {[%clk 0:03:01.5]}
5... Nc6 {[%clk 0:02:54.5]} 6. O-O {[%clk 0:03:01.5]} 6... Nb6 {[%clk
0:02:54.8]} 7. b3 {[%clk 0:02:57.7]} 7... Be6 {[%clk 0:02:46.2]} 8. Bb2 {[%clk
0:02:55.9]} 8... f6 {[%clk 0:02:46]} 9. Qc1 {[%clk 0:02:37.6]} 9... Bd6 {[%clk
0:02:34.4]} 10. Rd1 {[%clk 0:02:33.8]} 10... Qe7 {[%clk 0:02:33.9]} 11. d4
{[%clk 0:02:23.3]} 11... exd4 {[%clk 0:02:27.3]} 12. Nxd4 {[%clk 0:02:23.4]}
12... Nxd4 {[%clk 0:02:27.2]} 13. Bxd4 {[%clk 0:02:24.3]} 13... c6 {[%clk
0:02:24.7]} 14. Nc3 {[%clk 0:02:11.6]} 14... O-O {[%clk 0:02:23.2]} 15. Ne4
{[%clk 0:02:11.8]} 15... Ba3 {[%clk 0:02:19]} 16. Bc5 {[%clk 0:01:57.8]} 16...
Bxc5 {[%clk 0:02:15.9]} 17. Qxc5 {[%clk 0:01:51.7]} 17... Rfe8 {[%clk
0:01:54.5]} 18. Qxe7 {[%clk 0:01:29.3]} 18... Rxe7 {[%clk 0:01:55.4]} 19. Nc5
{[%clk 0:01:29.8]} 19... Bd5 {[%clk 0:01:54.6]} 20. e4 {[%clk 0:01:27.6]} 20...
Bf7 {[%clk 0:01:54.7]} 21. f3 {[%clk 0:01:24.8]} 21... a5 {[%clk 0:01:50.5]} 22.
a3 {[%clk 0:01:11.9]} 22... Kf8 {[%clk 0:01:42.2]} 23. Rd4 {[%clk 0:00:57.1]}
23... Re5 {[%clk 0:01:36.8]} 24. Rc1 {[%clk 0:00:54.7]} 24... g5 {[%clk
0:01:22.1]} 25. Nxb7 {[%clk 0:00:51.7]} 25... Rb8 {[%clk 0:01:09.5]} 26. Nc5
{[%clk 0:00:40.9]} 26... Ke7 {[%clk 0:01:07]} 27. Kf2 {[%clk 0:00:35.3]} 27...
h6 {[%clk 0:01:00.9]} 28. Bh3 {[%clk 0:00:33.3]} 28... Be8 {[%clk 0:00:48.1]}
29. Bf5 {[%clk 0:00:24.3]} 29... Kf7 {[%clk 0:00:46.6]} 30. f4 {[%clk
0:00:22.2]} 30... gxf4 {[%clk 0:00:45.8]} 31. gxf4 {[%clk 0:00:23.1]} 31... Re7
{[%clk 0:00:46.6]} 32. b4 {[%clk 0:00:23.4]} 32... axb4 {[%clk 0:00:46.2]} 33.
axb4 {[%clk 0:00:24.3]} 33... Ra8 {[%clk 0:00:46]} 34. Rc2 {[%clk 0:00:21.1]}
34... Ra3 {[%clk 0:00:45]} 35. Rd8 {[%clk 0:00:16.9]} 35... Na4 {[%clk
0:00:39.5]} 36. Be6+ {[%clk 0:00:08.9]} 36... Kg7 {[%clk 0:00:34.7]} 37. f5
{[%clk 0:00:07.2]} 37... Nxc5 {[%clk 0:00:33.3]} 38. Rxc5 {[%clk 0:00:07.7]}
38... h5 {[%clk 0:00:29.9]} 39. h4 {[%clk 0:00:04.3]} 39... Rh3 {[%clk
0:00:29.1]} 40. b5 {[%clk 0:00:03.4]} 40... cxb5 {[%clk 0:00:28]} 41. Rcc8
{[%clk 0:00:03.6]} 41... Bf7 {[%clk 0:00:23]} 42. Bxf7 {[%clk 0:00:02.6]} 42...
Kxf7 {[%clk 0:00:23.4]} 43. Rf8+ {[%clk 0:00:03]} 43... Kg7 {[%clk 0:00:23.9]}
44. Rg8+ {[%clk 0:00:03.5]} 44... Kh7 {[%clk 0:00:24.3]} 45. Rh8+ {[%clk
0:00:03.8]} 45... Kg7 {[%clk 0:00:24.8]} 46. Rcg8+ {[%clk 0:00:04]} 46... Kf7
{[%clk 0:00:24.9]} 47. Rf8+ {[%clk 0:00:04.5]} 47... Kg7 {[%clk 0:00:24.5]} 48.
Rhg8+ {[%clk 0:00:05.1]} 48... Kh7 {[%clk 0:00:24.2]} 49. Rg6 {[%clk 0:00:02.7]}
49... Rxe4 {[%clk 0:00:20.1]} 50. Rfxf6 {[%clk 0:00:03.1]} 50... Rhxh4 {[%clk
0:00:18.8]} 51. Rf7+ {[%clk 0:00:03]} 51... Kh8 {[%clk 0:00:18.4]} 52. Rf8+
{[%clk 0:00:03.6]} 52... Kh7 {[%clk 0:00:18.4]} 53. Rf7+ {[%clk 0:00:02.5]}
53... Kh8 {[%clk 0:00:18.7]} 54. Rf8+ {[%clk 0:00:01.7]} 54... Kh7 {[%clk
0:00:18.9]} 55. Rf7+ {[%clk 0:00:02.6]} 1/2-1/2

[Event "*** Titled Tuesday Blitz"]
[Site "Chess.com"]
[Date "2020.05.12"]
[Round "8"]
[White "LivajaM"]
[Black "StockholmMissile"]
[Result "1-0"]
[WhiteElo "2289"]
[BlackElo "2422"]
[TimeControl "180+1"]
[EndTime "11:33:35 PDT"]
[Termination "LivajaM won on time"]

1. d4 {[%clk 0:03:00.8]} 1... d5 {[%clk 0:02:58.7]} 2. c4 {[%clk 0:02:59.7]}
2... c6 {[%clk 0:02:58.6]} 3. Nc3 {[%clk 0:02:59.6]} 3... Nf6 {[%clk 0:02:58.9]}
4. Nf3 {[%clk 0:02:59.4]} 4... e6 {[%clk 0:02:59.2]} 5. Bg5 {[%clk 0:02:59]}
5... h6 {[%clk 0:02:59]} 6. Bh4 {[%clk 0:02:58.8]} 6... g5 {[%clk 0:02:58.8]} 7.
Bg3 {[%clk 0:02:58.9]} 7... dxc4 {[%clk 0:02:59.3]} 8. e3 {[%clk 0:02:57.3]}
8... b5 {[%clk 0:02:58.9]} 9. Ne5 {[%clk 0:02:57.4]} 9... Bb7 {[%clk 0:02:57.2]}
10. Be2 {[%clk 0:02:55.4]} 10... Nbd7 {[%clk 0:02:52.8]} 11. O-O {[%clk
0:02:54.5]} 11... Be7 {[%clk 0:02:48.4]} 12. Bf3 {[%clk 0:02:54]} 12... Nxe5
{[%clk 0:02:46]} 13. Bxe5 {[%clk 0:02:52.6]} 13... a6 {[%clk 0:02:43.4]} 14. Rc1
{[%clk 0:02:33.7]} 14... Rg8 {[%clk 0:02:28.7]} 15. h3 {[%clk 0:02:23.5]} 15...
Nd5 {[%clk 0:02:11.3]} 16. Ne4 {[%clk 0:02:16.1]} 16... Nb4 {[%clk 0:01:31.9]}
17. Bh5 {[%clk 0:02:15.6]} 17... Nd3 {[%clk 0:01:29.7]} 18. Qf3 {[%clk
0:02:15.2]} 18... Nxe5 {[%clk 0:01:20.6]} 19. dxe5 {[%clk 0:02:13.5]} 19... Rf8
{[%clk 0:01:12.5]} 20. Rcd1 {[%clk 0:02:12.9]} 20... Qc7 {[%clk 0:01:12.1]} 21.
Nd6+ {[%clk 0:02:03.2]} 21... Bxd6 {[%clk 0:01:10.7]} 22. exd6 {[%clk
0:02:02.9]} 22... Qd7 {[%clk 0:01:10.6]} 23. Qf6 {[%clk 0:01:54.5]} 23... c5
{[%clk 0:01:05]} 24. Qxh6 {[%clk 0:01:53.3]} 24... O-O-O {[%clk 0:01:04.6]} 25.
Qxg5 {[%clk 0:01:51.1]} 25... Rg8 {[%clk 0:01:04.7]} 26. Qxc5+ {[%clk
0:01:50.6]} 26... Kb8 {[%clk 0:01:03.4]} 27. f3 {[%clk 0:01:25.3]} 27... f5
{[%clk 0:00:57]} 28. Qc7+ {[%clk 0:01:21.6]} 28... Qxc7 {[%clk 0:00:55.8]} 29.
dxc7+ {[%clk 0:01:22.2]} 29... Kxc7 {[%clk 0:00:56.7]} 30. Bf7 {[%clk
0:01:21.9]} 30... Rxd1 {[%clk 0:00:46]} 31. Rxd1 {[%clk 0:01:21.8]} 31... Rg7
{[%clk 0:00:46.1]} 32. Bxe6 {[%clk 0:01:20.2]} 32... Bxf3 {[%clk 0:00:45.7]} 33.
Rd2 {[%clk 0:01:19.9]} 33... Be4 {[%clk 0:00:44.3]} 34. g4 {[%clk 0:01:15.8]}
34... Rg6 {[%clk 0:00:36.8]} 35. Bf7 {[%clk 0:01:09.4]} 35... Rg7 {[%clk
0:00:27.1]} 36. Bh5 {[%clk 0:01:06.9]} 36... Bf3 {[%clk 0:00:23.9]} 37. Rd4
{[%clk 0:01:03.5]} 37... Kb6 {[%clk 0:00:18.7]} 38. Kf2 {[%clk 0:01:02.6]} 38...
fxg4 {[%clk 0:00:17.6]} 39. Bxg4 {[%clk 0:01:01.8]} 39... Bc6 {[%clk 0:00:17.2]}
40. Rd6 {[%clk 0:00:59.2]} 40... Kc5 {[%clk 0:00:17]} 41. Rf6 {[%clk 0:00:58.7]}
41... b4 {[%clk 0:00:17.1]} 42. Bf3 {[%clk 0:00:55.7]} 42... Bxf3 {[%clk
0:00:16.2]} 43. Kxf3 {[%clk 0:00:56.1]} 43... c3 {[%clk 0:00:16.5]} 44. bxc3
{[%clk 0:00:50.8]} 44... bxc3 {[%clk 0:00:17.4]} 45. Ke2 {[%clk 0:00:51]} 45...
Rd7 {[%clk 0:00:16.8]} 46. Rf1 {[%clk 0:00:48.1]} 46... Rd2+ {[%clk 0:00:13.2]}
47. Kf3 {[%clk 0:00:47.2]} 47... Kc4 {[%clk 0:00:13.6]} 48. e4 {[%clk
0:00:42.4]} 48... c2 {[%clk 0:00:11.5]} 49. Rc1 {[%clk 0:00:41.4]} 49... Kd3
{[%clk 0:00:09.8]} 50. e5 {[%clk 0:00:40.6]} 50... Rd1 {[%clk 0:00:09.4]} 51.
Rxc2 {[%clk 0:00:40.6]} 51... Kxc2 {[%clk 0:00:09.9]} 52. Ke4 {[%clk 0:00:39.3]}
52... Kc3 {[%clk 0:00:09]} 53. e6 {[%clk 0:00:39.6]} 53... Kc4 {[%clk
0:00:09.3]} 54. Ke5 {[%clk 0:00:39.7]} 54... Re1+ {[%clk 0:00:07.2]} 55. Kd6
{[%clk 0:00:39.6]} 55... Kd4 {[%clk 0:00:03.3]} 56. e7 {[%clk 0:00:39.7]} 56...
a5 {[%clk 0:00:01.6]} 57. Kd7 {[%clk 0:00:39.8]} 57... a4 {[%clk 0:00:01.9]} 58.
h4 {[%clk 0:00:38.3]} 58... a3 {[%clk 0:00:01.4]} 59. h5 {[%clk 0:00:34.6]}
59... Kc3 {[%clk 0:00:01.7]} 60. e8=Q {[%clk 0:00:34.8]} 1-0

[Event "*** Titled Tuesday Blitz"]
[Site "Chess.com"]
[Date "2020.05.12"]
[Round "8"]
[White "MichailovM"]
[Black "floplover"]
[Result "0-1"]
[WhiteElo "2388"]
[BlackElo "2260"]
[TimeControl "180+1"]
[EndTime "11:33:37 PDT"]
[Termination "floplover won by resignation"]

1. e4 {[%clk 0:03:00.9]} 1... c6 {[%clk 0:02:59.1]} 2. d4 {[%clk 0:02:56.9]}
2... d5 {[%clk 0:03:00]} 3. e5 {[%clk 0:02:56.2]} 3... Bf5 {[%clk 0:02:59.4]} 4.
h4 {[%clk 0:02:55.4]} 4... h5 {[%clk 0:02:58.6]} 5. c4 {[%clk 0:02:54.6]} 5...
e6 {[%clk 0:02:55.6]} 6. Nc3 {[%clk 0:02:54.6]} 6... Be7 {[%clk 0:02:47.5]} 7.
Qb3 {[%clk 0:02:42.1]} 7... Qb6 {[%clk 0:02:37.5]} 8. c5 {[%clk 0:02:13.5]} 8...
Qc7 {[%clk 0:02:23.6]} 9. Nge2 {[%clk 0:02:12.8]} 9... Nd7 {[%clk 0:02:12.9]}
10. Ng3 {[%clk 0:02:12.4]} 10... Bg6 {[%clk 0:02:10]} 11. Bg5 {[%clk 0:02:09.7]}
11... b6 {[%clk 0:02:08.9]} 12. cxb6 {[%clk 0:02:07.5]} 12... Qxb6 {[%clk
0:01:50.5]} 13. Qxb6 {[%clk 0:01:50.8]} 13... axb6 {[%clk 0:01:49.2]} 14. a4
{[%clk 0:01:51]} 14... f6 {[%clk 0:01:44.2]} 15. exf6 {[%clk 0:01:48.4]} 15...
gxf6 {[%clk 0:01:44.8]} 16. Be3 {[%clk 0:01:43.3]} 16... e5 {[%clk 0:01:40.3]}
17. Be2 {[%clk 0:01:30.6]} 17... Nh6 {[%clk 0:01:00.3]} 18. O-O {[%clk
0:01:13.4]} 18... Ng4 {[%clk 0:00:52.8]} 19. Rfc1 {[%clk 0:01:00.5]} 19... Bd6
{[%clk 0:00:25.3]} 20. Bxg4 {[%clk 0:00:42.2]} 20... hxg4 {[%clk 0:00:24.7]} 21.
h5 {[%clk 0:00:36.4]} 21... Bxh5 {[%clk 0:00:24]} 22. Nf5 {[%clk 0:00:36.6]}
22... Bf8 {[%clk 0:00:17.8]} 23. Ne2 {[%clk 0:00:18]} 23... Bg6 {[%clk 0:00:18]}
24. Neg3 {[%clk 0:00:16.6]} 24... c5 {[%clk 0:00:18]} 25. dxe5 {[%clk
0:00:16.8]} 25... fxe5 {[%clk 0:00:17.8]} 26. Rd1 {[%clk 0:00:16.4]} 26... d4
{[%clk 0:00:18.2]} 27. Bg5 {[%clk 0:00:16.9]} 27... Ra5 {[%clk 0:00:15.5]} 28.
Re1 {[%clk 0:00:16.7]} 28... Kf7 {[%clk 0:00:14.9]} 29. Nh4 {[%clk 0:00:11.2]}
29... Bc2 {[%clk 0:00:13.1]} 30. Rac1 {[%clk 0:00:09.4]} 30... Bxa4 {[%clk
0:00:12.4]} 31. b4 {[%clk 0:00:09.3]} 31... Rb5 {[%clk 0:00:10.7]} 32. bxc5
{[%clk 0:00:08.3]} 32... bxc5 {[%clk 0:00:11.6]} 33. Ne4 {[%clk 0:00:08.7]}
33... Bb3 {[%clk 0:00:10.7]} 34. Nf5 {[%clk 0:00:08.1]} 34... c4 {[%clk
0:00:10.5]} 35. Nfd6+ {[%clk 0:00:08.2]} 35... Bxd6 {[%clk 0:00:09.5]} 36. Nxd6+
{[%clk 0:00:09.1]} 36... Kg6 {[%clk 0:00:10.4]} 37. Nxb5 {[%clk 0:00:09.3]}
37... Kxg5 {[%clk 0:00:11.3]} 38. Ra1 {[%clk 0:00:08.4]} 38... c3 {[%clk
0:00:10.8]} 39. Ra7 {[%clk 0:00:08.4]} 39... Rd8 {[%clk 0:00:08.2]} 40. f3
{[%clk 0:00:05.7]} 40... gxf3 {[%clk 0:00:07.8]} 41. gxf3 {[%clk 0:00:06.6]}
41... Kf4 {[%clk 0:00:08.4]} 42. Kf2 {[%clk 0:00:06.8]} 42... Bc4 {[%clk
0:00:06.8]} 43. Nd6 {[%clk 0:00:06.7]} 43... Bd5 {[%clk 0:00:07.1]} 44. Ne4
{[%clk 0:00:07]} 44... Bxe4 {[%clk 0:00:07.2]} 45. Rxe4+ {[%clk 0:00:07.9]}
45... Kf5 {[%clk 0:00:07.6]} 46. Ke2 {[%clk 0:00:08.5]} 46... Nc5 {[%clk
0:00:06.2]} 47. Rb7 {[%clk 0:00:09.4]} 47... Nxe4 {[%clk 0:00:06.2]} 48. fxe4+
{[%clk 0:00:10.3]} 48... Kxe4 {[%clk 0:00:07.1]} 49. Rc7 {[%clk 0:00:10.1]}
49... d3+ {[%clk 0:00:06.9]} 50. Kd1 {[%clk 0:00:11]} 50... c2+ {[%clk
0:00:07.1]} 51. Kc1 {[%clk 0:00:10.6]} 51... Ke3 {[%clk 0:00:06.9]} 0-1

[Event "*** Titled Tuesday Blitz"]
[Site "Chess.com"]
[Date "2020.05.12"]
[Round "8"]
[White "przemekpiotrowski"]
[Black "TST2014"]
[Result "0-1"]
[WhiteElo "2436"]
[BlackElo "2589"]
[TimeControl "180+1"]
[EndTime "11:33:38 PDT"]
[Termination "TST2014 won by resignation"]

1. d4 {[%clk 0:03:00.9]} 1... Nf6 {[%clk 0:02:24.7]} 2. Nf3 {[%clk 0:03:00.8]}
2... g6 {[%clk 0:02:19]} 3. g3 {[%clk 0:03:01.2]} 3... Bg7 {[%clk 0:02:16.6]} 4.
Bg2 {[%clk 0:03:01.9]} 4... O-O {[%clk 0:02:16.9]} 5. O-O {[%clk 0:03:02.8]}
5... d6 {[%clk 0:02:16.9]} 6. c4 {[%clk 0:03:03.3]} 6... Nbd7 {[%clk 0:02:16.8]}
7. Nc3 {[%clk 0:03:03.7]} 7... e5 {[%clk 0:02:16.5]} 8. b3 {[%clk 0:03:04.2]}
8... Re8 {[%clk 0:02:10.2]} 9. Bb2 {[%clk 0:03:04]} 9... c6 {[%clk 0:02:08.6]}
10. e4 {[%clk 0:03:02.7]} 10... a6 {[%clk 0:02:05.9]} 11. d5 {[%clk 0:03:02.6]}
11... cxd5 {[%clk 0:02:03.9]} 12. cxd5 {[%clk 0:02:49]} 12... b5 {[%clk
0:02:03.1]} 13. Nd2 {[%clk 0:02:49.2]} 13... Nc5 {[%clk 0:02:01.4]} 14. b4
{[%clk 0:02:40.8]} 14... Nd3 {[%clk 0:01:59.8]} 15. Qb1 {[%clk 0:02:32.4]} 15...
Nxb2 {[%clk 0:01:50.5]} 16. Qxb2 {[%clk 0:02:33.3]} 16... Nd7 {[%clk 0:01:48.9]}
17. Nb3 {[%clk 0:02:32.3]} 17... Nb6 {[%clk 0:01:48.3]} 18. Na5 {[%clk
0:02:32.6]} 18... Nc4 {[%clk 0:01:40.6]} 19. Nxc4 {[%clk 0:02:31.8]} 19... bxc4
{[%clk 0:01:41.5]} 20. a4 {[%clk 0:02:32.3]} 20... f5 {[%clk 0:01:40]} 21. Qe2
{[%clk 0:02:26.8]} 21... Qc7 {[%clk 0:01:36.1]} 22. Rfc1 {[%clk 0:02:21.5]}
22... Bd7 {[%clk 0:01:34.1]} 23. Bf1 {[%clk 0:02:15.5]} 23... Rec8 {[%clk
0:01:29]} 24. Rab1 {[%clk 0:02:10.8]} 24... Bh6 {[%clk 0:01:25.9]} 25. Rc2
{[%clk 0:02:08.7]} 25... fxe4 {[%clk 0:01:22]} 26. Nxe4 {[%clk 0:02:03.2]} 26...
Bxa4 {[%clk 0:01:20.7]} 27. Rxc4 {[%clk 0:01:26.1]} 27... Qxc4 {[%clk
0:01:14.7]} 28. Qxc4 {[%clk 0:01:27]} 28... Rxc4 {[%clk 0:01:14.7]} 29. Bxc4
{[%clk 0:01:27.6]} 29... Bc2 {[%clk 0:01:14.9]} 30. Re1 {[%clk 0:01:27.8]} 30...
Bxe4 {[%clk 0:01:08.9]} 31. Rxe4 {[%clk 0:01:28.7]} 31... Bd2 {[%clk 0:01:02]}
32. Be2 {[%clk 0:01:21.8]} 32... Rb8 {[%clk 0:00:57.3]} 33. Bxa6 {[%clk
0:01:20]} 33... Bxb4 {[%clk 0:00:57.3]} 34. Rc4 {[%clk 0:01:12.7]} 34... Bc5
{[%clk 0:00:56.6]} 35. Rc2 {[%clk 0:01:12.5]} 35... Rb1+ {[%clk 0:00:54.5]} 36.
Kg2 {[%clk 0:01:11.9]} 36... Rd1 {[%clk 0:00:55]} 37. Bc8 {[%clk 0:01:11.6]}
37... Kg7 {[%clk 0:00:53.8]} 38. Be6 {[%clk 0:01:11.7]} 38... h5 {[%clk
0:00:53]} 39. h4 {[%clk 0:01:11.2]} 39... e4 {[%clk 0:00:50.7]} 40. Re2 {[%clk
0:01:08.1]} 40... Rd4 {[%clk 0:00:47.9]} 41. Ra2 {[%clk 0:01:01.9]} 41... Kf6
{[%clk 0:00:47.5]} 42. Re2 {[%clk 0:01:00.8]} 42... g5 {[%clk 0:00:37.9]} 43.
hxg5+ {[%clk 0:00:59.4]} 43... Kxg5 {[%clk 0:00:38.8]} 44. f3 {[%clk 0:00:56.2]}
44... exf3+ {[%clk 0:00:36]} 45. Kxf3 {[%clk 0:00:57.1]} 45... Rd3+ {[%clk
0:00:36.3]} 46. Kg2 {[%clk 0:00:57.4]} 46... Bd4 {[%clk 0:00:36.5]} 47. Kh3
{[%clk 0:00:40]} 47... Be5 {[%clk 0:00:31.2]} 48. Rg2 {[%clk 0:00:40.2]} 48...
h4 {[%clk 0:00:31]} 49. Rg1 {[%clk 0:00:39.6]} 49... hxg3 {[%clk 0:00:29.9]} 50.
Rf1 {[%clk 0:00:38.2]} 50... Rd2 {[%clk 0:00:26.6]} 51. Rf5+ {[%clk 0:00:35.3]}
51... Kg6 {[%clk 0:00:26.6]} 52. Kg4 {[%clk 0:00:20.3]} 52... g2 {[%clk
0:00:22.4]} 53. Rg5+ {[%clk 0:00:20.7]} 53... Kf6 {[%clk 0:00:20.6]} 54. Kh5
{[%clk 0:00:19.1]} 54... Bd4 {[%clk 0:00:18.5]} 55. Rg6+ {[%clk 0:00:19.1]}
55... Ke7 {[%clk 0:00:15.5]} 56. Bg4 {[%clk 0:00:18.9]} 56... g1=Q {[%clk
0:00:12.8]} 57. Re6+ {[%clk 0:00:19.8]} 57... Kf7 {[%clk 0:00:12.7]} 0-1

[Event "*** Titled Tuesday Blitz"]
[Site "Chess.com"]
[Date "2020.05.12"]
[Round "8"]
[White "YaWaleriy"]
[Black "Nagimov_Artiom"]
[Result "1-0"]
[WhiteElo "2251"]
[BlackElo "2390"]
[TimeControl "180+1"]
[EndTime "11:33:38 PDT"]
[Termination "YaWaleriy won by resignation"]

1. d4 {[%clk 0:03:00.9]} 1... d5 {[%clk 0:03:00.1]} 2. Nf3 {[%clk 0:03:00]} 2...
Nf6 {[%clk 0:03:00]} 3. c4 {[%clk 0:02:59.8]} 3... c6 {[%clk 0:03:00.6]} 4. e3
{[%clk 0:02:59.9]} 4... e6 {[%clk 0:03:01]} 5. Bd3 {[%clk 0:02:59.7]} 5... c5
{[%clk 0:02:56]} 6. O-O {[%clk 0:02:56.1]} 6... cxd4 {[%clk 0:02:55.1]} 7. exd4
{[%clk 0:02:56.2]} 7... Nbd7 {[%clk 0:02:49.7]} 8. Nc3 {[%clk 0:02:54.7]} 8...
Be7 {[%clk 0:02:42.6]} 9. cxd5 {[%clk 0:02:53.8]} 9... exd5 {[%clk 0:02:42.7]}
10. Ne5 {[%clk 0:02:51.8]} 10... O-O {[%clk 0:02:41.9]} 11. Bf4 {[%clk
0:02:47.4]} 11... a6 {[%clk 0:02:41]} 12. Re1 {[%clk 0:02:45.2]} 12... Re8
{[%clk 0:02:40.7]} 13. Rc1 {[%clk 0:02:42]} 13... Nf8 {[%clk 0:02:37]} 14. Qf3
{[%clk 0:02:15.8]} 14... Be6 {[%clk 0:02:34.2]} 15. Na4 {[%clk 0:02:09.9]} 15...
Rc8 {[%clk 0:02:31]} 16. a3 {[%clk 0:02:01.6]} 16... b5 {[%clk 0:02:28.1]} 17.
Nc5 {[%clk 0:01:59.8]} 17... Bxc5 {[%clk 0:02:14.8]} 18. dxc5 {[%clk 0:01:57.6]}
18... d4 {[%clk 0:02:15.2]} 19. Bg5 {[%clk 0:01:49.8]} 19... Bd5 {[%clk
0:02:09]} 20. Qh3 {[%clk 0:01:44.6]} 20... h6 {[%clk 0:02:00.8]} 21. Bf4 {[%clk
0:01:32.5]} 21... Ne6 {[%clk 0:01:51.7]} 22. Bxh6 {[%clk 0:01:26.7]} 22... g6
{[%clk 0:01:51.8]} 23. b4 {[%clk 0:01:23.3]} 23... Nh5 {[%clk 0:01:24.6]} 24.
Qg4 {[%clk 0:01:13.6]} 24... Qf6 {[%clk 0:01:07.1]} 25. Nd7 {[%clk 0:01:05.1]}
25... Qe7 {[%clk 0:01:07.3]} 26. Nb6 {[%clk 0:01:02.5]} 26... Nf6 {[%clk
0:00:57.3]} 27. Qh4 {[%clk 0:00:44.8]} 27... Rc7 {[%clk 0:00:35.4]} 28. Bg5
{[%clk 0:00:43.8]} 28... Nxg5 {[%clk 0:00:23.6]} 29. Rxe7 {[%clk 0:00:41.8]}
29... Rcxe7 {[%clk 0:00:24.3]} 30. f3 {[%clk 0:00:34.8]} 30... Bxf3 {[%clk
0:00:11.1]} 31. Qxg5 {[%clk 0:00:34]} 31... Kg7 {[%clk 0:00:07.7]} 32. gxf3
{[%clk 0:00:32.7]} 32... Re3 {[%clk 0:00:07.4]} 33. Rd1 {[%clk 0:00:28.5]} 33...
Rxf3 {[%clk 0:00:07.3]} 34. Kg2 {[%clk 0:00:23.7]} 34... Ree3 {[%clk 0:00:07.1]}
35. Bf1 {[%clk 0:00:22.3]} 35... Rxa3 {[%clk 0:00:06.3]} 36. Rxd4 {[%clk
0:00:20.8]} 36... Rf5 {[%clk 0:00:06.5]} 37. Qd2 {[%clk 0:00:18]} 37... g5
{[%clk 0:00:03.1]} 38. Nd5 {[%clk 0:00:17.3]} 38... Nh5 {[%clk 0:00:03.2]} 39.
Rg4 {[%clk 0:00:14.6]} 39... Raf3 {[%clk 0:00:02.9]} 40. Bd3 {[%clk 0:00:11.8]}
40... Nf4+ {[%clk 0:00:02.6]} 41. Nxf4 {[%clk 0:00:10.9]} 41... R5xf4 {[%clk
0:00:01.7]} 42. Rxf4 {[%clk 0:00:10.9]} 42... Rxf4 {[%clk 0:00:02.3]} 43. Be2
{[%clk 0:00:10.9]} 43... Re4 {[%clk 0:00:01.3]} 44. c6 {[%clk 0:00:10.3]} 44...
Re7 {[%clk 0:00:01.1]} 45. Qd4+ {[%clk 0:00:09.7]} 45... f6 {[%clk 0:00:01.1]}
46. Qd6 {[%clk 0:00:09.8]} 46... Rxe2+ {[%clk 0:00:01.8]} 47. Kf3 {[%clk
0:00:09.2]} 47... Rd2 {[%clk 0:00:02.6]} 48. Qxd2 {[%clk 0:00:07.9]} 48... f5
{[%clk 0:00:03.2]} 49. Qd6 {[%clk 0:00:07.3]} 49... g4+ {[%clk 0:00:03.9]} 50.
Kf4 {[%clk 0:00:07.7]} 50... g3 {[%clk 0:00:04.6]} 1-0